bitfinex/quotes_BTCUSD_20250829
["timestamp","ask_amount","ask_price","bid_price","bid_amount"]
[1756461646677,1.48012362,110040.0,110030.0,0.1847386]
[1756461647101,1.48016362,110040.0,110030.0,0.1847386]
[1756461647660,1.29841153,110040.0,110030.0,0.1847386]
[1756461647860,1.29841153,110040.0,110030.0,0.1867686]
[1756461648308,0.24857236,110040.0,110030.0,0.1867686]
[1756461648624,1.09666813,110040.0,110030.0,0.1867686]
[1756461648836,1.07324862,110040.0,110030.0,0.1867686]
[1756461649125,1.0966031,110040.0,110030.0,0.1867686]
[1756461650323,1.2513631,110040.0,110030.0,0.1867686]
[1756461652341,1.0966031,110040.0,110030.0,0.1867686]
[1756461657339,1.27835519,110040.0,110030.0,0.1847386]
[1756461657723,1.27835519,110040.0,110030.0,0.1817686]
[1756461658077,1.27835519,110040.0,110030.0,0.1847886]
[1756461658915,1.0966031,110040.0,110030.0,0.1868886]
[1756461659415,1.06475605,110040.0,110030.0,0.1868886]
[1756461659657,1.09663045,110040.0,110030.0,0.1868886]
[1756461662292,0.0318744,110040.0,110030.0,0.1868886]
[1756461662760,0.0318744,110040.0,110030.0,0.2142196]
[1756461663601,0.0318744,110040.0,110030.0,0.2162196]
[1756461663816,0.06277997,110040.0,110030.0,0.2162196]
[1756461664022,0.06277997,110040.0,110030.0,0.2152196]
[1756461664237,0.0318744,110040.0,110030.0,0.2182196]
[1756461664859,0.0318744,110040.0,110030.0,0.2172196]
[1756461665064,0.0318744,110040.0,110030.0,0.3716196]
[1756461665312,0.0318744,110040.0,110030.0,0.3736196]
[1756461665528,0.03192654,110040.0,110030.0,0.3736196]
[1756461667225,1.24717528,110050.0,110040.0,0.18175209]
[1756461667441,1.26681068,110050.0,110040.0,0.18687209]
[1756461667827,1.24717528,110050.0,110040.0,0.18687209]
[1756461668204,1.26681335,110050.0,110040.0,0.18687209]
[1756461668393,1.26690009,110050.0,110040.0,0.18787209]
[1756461669014,1.26690009,110050.0,110040.0,0.18887209]
[1756461669224,1.08516441,110050.0,110040.0,0.18887209]
[1756461669483,1.26689998,110050.0,110040.0,0.18887209]
[1756461670705,0.2332487,110050.0,110040.0,0.18887209]
[1756461670913,1.26689998,110050.0,110040.0,0.18887209]
[1756461671789,1.60689998,110050.0,110040.0,0.18887209]
[1756461672250,1.60689998,110050.0,110040.0,0.34307209]
[1756461672688,0.5732487,110050.0,110040.0,0.34307209]
[1756461673387,1.60689998,110050.0,110040.0,0.34307209]
[1756461675420,1.60689998,110050.0,110040.0,0.18887209]
[1756461675616,1.60689998,110050.0,110040.0,0.34299209]
[1756461676722,1.6278388,110050.0,110040.0,0.34299209]
[1756461677226,1.6278388,110050.0,110040.0,0.33707371]
[1756461677640,1.6278388,110050.0,110040.0,0.18295371]
[1756461678062,1.71613512,110050.0,110040.0,0.002]
[1756461678287,0.20269091,110040.0,110020.0,0.19387955]
[1756461678512,0.20272394,110020.0,110000.0,0.2733445]
[1756461678744,0.20272394,110020.0,109990.0,0.26175136]
[1756461678745,0.202757,110000.0,109990.0,0.0002]
[1756461678970,1.0545901,110000.0,109990.0,0.33631471]
[1756461679182,1.08658296,110000.0,109990.0,0.34171471]
[1756461679422,1.08658294,110000.0,109990.0,0.36905571]
[1756461679835,1.08654734,110000.0,109990.0,0.36905571]
[1756461680227,1.08654734,110000.0,109990.0,0.37010328]
[1756461680797,0.05289606,110000.0,109990.0,0.37010328]
[1756461681034,1.08654734,110000.0,109990.0,0.34276228]
[1756461681344,1.29946795,110000.0,109990.0,0.34284228]
[1756461681573,1.11764977,110000.0,109990.0,0.34284228]
[1756461681943,1.11764977,110000.0,109990.0,0.34384228]
[1756461682366,0.05289606,110000.0,109990.0,0.34384228]
[1756461683735,0.08461392,110000.0,109990.0,0.34384228]
[1756461683935,0.05289606,110000.0,109990.0,0.34384228]
[1756461685082,1.26836552,110000.0,109990.0,0.34376228]
[1756461685281,1.08654734,110000.0,109990.0,0.34376228]
[1756461685733,0.05289606,110000.0,109990.0,0.34376228]
[1756461685941,1.08654734,110000.0,109990.0,0.34376228]
[1756461686465,0.05289606,110000.0,109990.0,0.34376228]
[1756461687330,0.04650461,110000.0,109990.0,0.34376228]
[1756461688591,0.04642871,110000.0,109990.0,0.34376228]
[1756461689592,0.04642871,110000.0,109990.0,1.37741356]
[1756461690012,0.04642871,110000.0,109990.0,0.4320586]
[1756461690224,0.02548989,110000.0,109990.0,0.4320586]
[1756461690425,1.36990259,110030.0,110020.0,0.18178512]
[1756461690630,1.40175874,110030.0,110020.0,0.18395512]
[1756461690843,1.60821756,110030.0,110020.0,0.18718512]
[1756461691066,1.60821754,110030.0,110020.0,0.18501512]
[1756461691313,1.60821754,110030.0,110020.0,0.18178512]
[1756461691756,0.02093882,110010.0,110000.0,0.26402956]
[1756461691967,0.02943379,110010.0,110000.0,0.50901588]
[1756461692454,0.04642404,110010.0,110000.0,0.50901588]
[1756461693082,0.04642404,110010.0,110000.0,0.51101588]
[1756461693290,0.02943379,110010.0,110000.0,0.51101588]
[1756461693712,0.02943379,110010.0,110000.0,0.51201588]
[1756461694372,0.02943488,110010.0,110000.0,0.51201588]
[1756461699225,0.02943488,110010.0,110000.0,0.5387133]
[1756461701458,0.02550904,110010.0,110000.0,0.5387133]
[1756461701681,1.03365128,110030.0,110010.0,0.19086273]
[1756461701682,0.18176874,110030.0,110010.0,0.19086273]
[1756461701880,0.21365519,110030.0,110020.0,0.33856104]
[1756461702175,0.03188645,110030.0,110020.0,0.33951873]
[1756461702941,0.03188645,110030.0,110020.0,0.34168873]
[1756461703145,0.03288645,110030.0,110020.0,0.34168873]
[1756461703346,0.03388645,110030.0,110020.0,0.34168873]
[1756461703549,1.06753773,110030.0,110020.0,0.34168873]
[1756461703981,1.06653773,110030.0,110020.0,0.34168873]
[1756461704186,1.06753773,110030.0,110020.0,0.34168873]
[1756461704385,1.09389834,110030.0,110020.0,0.34168873]
[1756461704585,1.09489834,110030.0,110020.0,0.34168873]
[1756461704907,1.09389834,110030.0,110020.0,0.34168873]
[1756461705112,1.09389834,110030.0,110020.0,0.34268873]
[1756461705677,1.09289834,110030.0,110020.0,0.34268873]
[1756461705955,1.09289834,110030.0,110020.0,0.34368873]
[1756461706785,1.09289834,110030.0,110020.0,0.18916873]
[1756461706981,1.09289834,110030.0,110020.0,0.34356873]
[1756461708001,1.09289834,110030.0,110020.0,0.34352873]
[1756461708440,1.07590151,110030.0,110020.0,0.34352873]
[1756461708640,1.09292537,110030.0,110020.0,0.34352873]
[1756461712105,1.0929332,110030.0,110020.0,0.34352873]
[1756461714958,1.2747018,110030.0,110020.0,0.34336873]
[1756461715162,1.0929332,110030.0,110020.0,0.34336873]
[1756461715721,1.09293967,110030.0,110020.0,0.34336873]
[1756461716114,0.05928839,110030.0,110020.0,0.34336873]
[1756461716297,1.09293967,110030.0,110020.0,0.34336873]
[1756461717070,0.05928839,110030.0,110020.0,0.3932988]
[1756461717299,0.05928839,110030.0,110020.0,0.34336873]
[1756461717530,1.09293967,110030.0,110020.0,0.34336873]
[1756461718479,1.08793967,110030.0,110020.0,0.34336873]
[1756461719166,0.05430232,110030.0,110020.0,0.34336873]
[1756461719377,1.0879536,110030.0,110020.0,0.34336873]
[1756461721357,1.07304306,110030.0,110020.0,0.34336873]
[1756461721586,0.05432315,110030.0,110020.0,0.34336873]
[1756461721810,1.08797443,110030.0,110020.0,0.34336873]
[1756461723569,0.05432315,110030.0,110020.0,0.34336873]
[1756461723708,0.03196254,110030.0,110020.0,1.37702001]
[1756461723924,0.03196254,110030.0,110020.0,1.42695008]
[1756461724082,0.03196254,110030.0,110020.0,1.45428108]
[1756461724299,0.02557003,110030.0,110020.0,0.4206298]
[1756461724510,0.02557003,110030.0,110020.0,0.4196298]
[1756461724915,0.02557003,110030.0,110020.0,0.4206298]
[1756461725347,0.02557003,110030.0,110020.0,0.4226298]
[1756461725761,0.02557003,110030.0,110020.0,0.4266298]
[1756461729076,0.02557003,110030.0,110020.0,0.4965498]
[1756461729930,0.02557003,110030.0,110020.0,0.57685788]
[1756461730145,0.00852334,110030.0,110020.0,0.57685788]
[1756461731034,0.00852334,110030.0,110020.0,0.57769788]
[1756461731463,1.04217462,110030.0,110020.0,0.29241973]
[1756461731681,1.06561087,110030.0,110020.0,0.41460873]
[1756461731896,1.24737947,110030.0,110020.0,0.34468873]
[1756461732123,1.33567698,110030.0,110020.0,0.34468873]
[1756461732955,1.06561206,110030.0,110020.0,0.34468873]
[1756461733180,0.03196078,110030.0,110020.0,0.34996873]
[1756461742111,0.03196078,110030.0,110020.0,0.37730173]
[1756461742827,0.01491486,110030.0,110020.0,0.37730173]
[1756461743039,0.03196503,110030.0,110020.0,0.37730173]
[1756461743450,0.03196538,110030.0,110020.0,0.37730173]
[1756461747505,0.03196538,110030.0,110020.0,0.22238173]
[1756461747713,1.06561666,110030.0,110020.0,0.21710173]
[1756461747908,1.06561666,110030.0,110020.0,0.37162173]
[1756461748119,1.06561666,110030.0,110020.0,0.37690173]
[1756461748308,1.06561666,110030.0,110020.0,0.37481173]
[1756461748730,1.06561666,110030.0,110020.0,0.37690173]
[1756461749137,1.06561666,110030.0,110020.0,0.36995469]
[1756461749767,0.03196662,110030.0,110020.0,0.36995469]
[1756461749969,1.0656179,110030.0,110020.0,0.36995469]
[1756461750923,0.03196662,110030.0,110020.0,0.36995469]
[1756461751157,1.0656179,110030.0,110020.0,0.36995469]
[1756461751371,0.03196662,110030.0,110020.0,0.36995469]
[1756461751591,0.03196662,110030.0,110020.0,0.45825101]
[1756461751810,0.03196662,110030.0,110020.0,1.49190229]
[1756461752024,0.03196662,110030.0,110020.0,0.45825101]
[1756461752531,0.02557238,110030.0,110020.0,0.45825101]
[1756461753668,0.20928092,110050.0,110040.0,0.18175209]
[1756461753669,1.2429322,110050.0,110040.0,0.18175209]
[1756461753884,1.0931666,110050.0,110040.0,0.33655209]
[1756461754100,1.0931666,110050.0,110040.0,0.33974209]
[1756461754550,0.03197269,110050.0,110040.0,0.34183209]
[1756461754779,0.03197269,110050.0,110040.0,1.37548337]
[1756461755002,0.00857376,110050.0,110040.0,1.46477969]
[1756461755680,0.00857376,110050.0,110040.0,1.83210469]
[1756461755913,0.00857376,110050.0,110040.0,0.79841341]
[1756461756148,0.00857376,110050.0,110040.0,1.67830469]
[1756461756392,4.771e-05,110050.0,110040.0,0.80005341]
[1756461756601,4.771e-05,110050.0,110040.0,0.79905341]
[1756461756812,4.771e-05,110050.0,110040.0,0.80113341]
[1756461757671,4.771e-05,110050.0,110040.0,0.80013341]
[1756461757872,4.771e-05,110050.0,110040.0,0.84094156]
[1756461758077,4.771e-05,110050.0,110040.0,0.80213341]
[1756461758742,4.771e-05,110050.0,110040.0,0.64665341]
[1756461758960,4.771e-05,110050.0,110040.0,0.80209341]
[1756461760792,0.01422111,110060.0,110050.0,0.19168786]
[1756461760997,0.02271976,110060.0,110050.0,0.19487786]
[1756461761155,0.02271976,110060.0,110050.0,0.19696786]
[1756461761372,0.02271976,110060.0,110050.0,0.22429286]
[1756461761883,0.01771976,110060.0,110050.0,0.22429286]
[1756461762125,0.00849865,110060.0,110050.0,0.22529286]
[1756461764342,1.05680019,110070.0,110060.0,0.18171906]
[1756461764546,1.08232836,110070.0,110060.0,0.34014906]
[1756461764756,1.26403091,110070.0,110060.0,0.34014906]
[1756461765551,1.08232836,110070.0,110060.0,0.34014906]
[1756461765905,1.08332836,110070.0,110060.0,0.34014906]
[1756461766106,1.08332836,110070.0,110060.0,0.33695906]
[1756461766324,1.09754892,110070.0,110060.0,0.34014906]
[1756461766557,0.06389764,110070.0,110060.0,0.34014906]
[1756461766767,1.09754892,110070.0,110060.0,0.34014906]
[1756461767959,1.11848774,110070.0,110060.0,0.34014906]
[1756461769044,0.08483646,110070.0,110060.0,0.34225906]
[1756461769260,1.11848774,110070.0,110060.0,0.34225906]
[1756461770325,1.1184855,110070.0,110060.0,0.34225906]
[1756461772168,1.30018805,110070.0,110060.0,0.34014906]
[1756461772387,0.08483422,110070.0,110060.0,0.34225906]
[1756461772562,1.1184855,110070.0,110060.0,0.34225906]
[1756461772972,0.08483422,110070.0,110060.0,0.34225906]
[1756461773182,1.1184855,110070.0,110060.0,0.34225906]
[1756461773393,1.12485553,110070.0,110060.0,0.34225906]
[1756461774003,1.12485553,110070.0,110060.0,0.34014906]
[1756461774434,1.30655808,110070.0,110060.0,0.34014906]
[1756461774870,1.12485553,110070.0,110060.0,0.34014906]
[1756461775055,1.12486154,110070.0,110060.0,0.34014906]
[1756461775397,1.1248629,110070.0,110060.0,0.34014906]
[1756461776406,1.1248629,110070.0,110060.0,0.34225906]
[1756461777666,1.10392408,110070.0,110060.0,0.34225906]
[1756461778074,1.11491061,110070.0,110060.0,0.34225906]
[1756461779176,0.08125933,110070.0,110060.0,0.34225906]
[1756461779378,0.88140832,110070.0,110060.0,0.34225906]
[1756461779823,1.03365128,110070.0,110060.0,0.34225906]
[1756461780262,1.05759305,110070.0,110060.0,0.34225906]
[1756461780744,1.2392956,110070.0,110060.0,0.34014906]
[1756461780968,1.05759305,110070.0,110060.0,0.34014906]
[1756461781431,1.07853187,110070.0,110060.0,0.34014906]
[1756461781649,1.07853187,110070.0,110060.0,0.34225906]
[1756461781864,0.02093882,110070.0,110060.0,0.34225906]
[1756461782075,0.02093882,110070.0,110060.0,0.41213906]
[1756461782723,0.02093882,110070.0,110060.0,0.43946306]
[1756461785161,0.02093882,110070.0,110060.0,0.44046306]
[1756461785535,0.02375943,110080.0,110070.0,0.18170255]
[1756461785753,0.04469825,110080.0,110070.0,0.18381255]
[1756461785964,0.02093882,110080.0,110070.0,0.18695255]
[1756461786764,0.04406009,110080.0,110070.0,0.18695255]
[1756461786976,0.02093882,110080.0,110070.0,0.18695255]
[1756461787628,0.02193882,110080.0,110070.0,0.18695255]
[1756461789403,0.02193882,110080.0,110070.0,0.17216148]
[1756461789587,0.02193882,110080.0,110070.0,0.17443276]
[1756461790693,0.04581647,110080.0,110070.0,0.17443276]
[1756461791256,0.07780289,110080.0,110070.0,0.17443276]
[1756461791696,0.0778024,110080.0,110070.0,0.17443276]
[1756461794799,0.0778024,110080.0,110070.0,0.32895276]
[1756461795019,0.0778024,110080.0,110070.0,0.32668148]
[1756461795226,0.05221284,110080.0,110070.0,0.32668148]
[1756461795440,0.07779831,110080.0,110070.0,0.32668148]
[1756461796096,0.07779783,110080.0,110070.0,0.32668148]
[1756461796281,0.05392018,110080.0,110070.0,0.32668148]
[1756461796967,0.03298136,110080.0,110070.0,1.47595108]
[1756461797187,0.03298136,110080.0,110070.0,0.4424998]
[1756461797396,0.03298136,110080.0,110070.0,0.48284244]
[1756461797853,0.03197262,110080.0,110070.0,0.32812244]
[1756461798064,0.03197262,110080.0,110070.0,0.48384244]
[1756461798689,0.03197262,110080.0,110070.0,0.48584244]
[1756461801469,0.02558,110080.0,110070.0,0.48584244]
[1756461802977,0.02558,110080.0,110070.0,0.4454998]
[1756461805881,0.0085235,110080.0,110070.0,0.4454998]
[1756461806075,1.40372648,110090.0,110080.0,0.18168604]
[1756461806298,1.41862715,110090.0,110080.0,0.18688604]
[1756461806499,1.41862695,110090.0,110080.0,0.18688604]
[1756461806923,1.41862695,110090.0,110080.0,0.23681611]
[1756461807193,1.41862695,110090.0,110080.0,0.18688604]
[1756461807374,1.41862695,110090.0,110080.0,0.18788604]
[1756461808364,1.41862695,110090.0,110080.0,0.18591604]
[1756461808575,1.41862695,110090.0,110080.0,0.34023604]
[1756461808775,1.41862695,110090.0,110080.0,0.18591604]
[1756461808976,1.41862695,110090.0,110080.0,0.001]
[1756461809177,1.41862695,110090.0,110080.0,0.15532]
[1756461809350,1.41862695,110090.0,110080.0,0.001]
[1756461809563,1.41862786,110090.0,110080.0,0.001]
[1756461809771,3.10589845,110090.0,110080.0,0.001]
[1756461809986,0.20264137,110070.0,110060.0,0.06988]
[1756461810194,2.55659288,110070.0,110060.0,0.15476]
[1756461811039,2.55659288,110070.0,110060.0,0.1095499]
[1756461811492,0.2355721,110070.0,110060.0,0.1095499]
[1756461811715,1.26810345,110070.0,110060.0,0.1095499]
[1756461811933,1.26710345,110070.0,110060.0,0.1127799]
[1756461812370,1.24710345,110070.0,110060.0,0.1127799]
[1756461812587,1.22616463,110070.0,110060.0,0.1127799]
[1756461813260,1.22616411,110070.0,110060.0,0.1127799]
[1756461813478,1.22616411,110070.0,110060.0,0.29449896]
[1756461814459,1.22616411,110070.0,110060.0,0.1127799]
[1756461815530,1.22616411,110070.0,110060.0,0.1147499]
[1756461815917,1.22616411,110070.0,110060.0,0.1127799]
[1756461816548,1.20274679,110070.0,110060.0,0.1127799]
[1756461816756,1.22615725,110070.0,110060.0,0.1127799]
[1756461816974,1.22615725,110070.0,110040.0,0.07311]
[1756461816975,0.18173557,110050.0,110040.0,0.07311]
[1756461817211,1.24619266,110050.0,110040.0,0.2244477]
[1756461817412,1.24619266,110050.0,110040.0,0.1545677]
[1756461818068,1.24619266,110050.0,110040.0,0.1577977]
[1756461818273,1.24619266,110050.0,110040.0,0.1545677]
[1756461818478,1.33448898,110050.0,110040.0,0.0010477]
[1756461818813,1.33448898,110050.0,110040.0,0.1555277]
[1756461819011,1.33448898,110050.0,110040.0,0.0010477]
[1756461819459,1.33448898,110050.0,110040.0,0.0030477]
[1756461819583,1.33448898,110050.0,110040.0,0.0020477]
[1756461819788,1.48896898,110050.0,110040.0,4.77e-05]
[1756461819996,1.49096898,110050.0,110040.0,4.77e-05]
[1756461820208,1.25019266,110050.0,110040.0,0.18699979]
[1756461820838,1.25019266,110050.0,110040.0,0.0052477]
[1756461821046,1.24819266,110050.0,110040.0,0.0052477]
[1756461821270,1.24819266,110050.0,110040.0,0.18699979]
[1756461821484,1.25019266,110050.0,110040.0,0.18699979]
[1756461821691,0.03592574,110050.0,110040.0,0.18699979]
[1756461822144,0.03392574,110050.0,110040.0,0.18699979]
[1756461822407,0.02754107,110050.0,110040.0,0.18699979]
[1756461822591,0.02654107,110050.0,110040.0,0.18699979]
[1756461823033,0.02654107,110050.0,110040.0,0.27529611]
[1756461823248,0.02754107,110050.0,110040.0,0.27529611]
[1756461823436,0.02654107,110050.0,110040.0,0.27529611]
[1756461823640,0.00951289,110050.0,110040.0,1.30782746]
[1756461823836,0.001,110050.0,110040.0,1.30782746]
[1756461824037,0.001,110050.0,110040.0,1.33515246]
[1756461824241,1.22845835,110070.0,110060.0,0.18171906]
[1756461824445,0.18172592,110060.0,110050.0,0.00323]
[1756461824647,0.18173557,110050.0,110040.0,0.19088739]
[1756461824946,0.20720467,110050.0,110040.0,0.1545677]
[1756461825195,1.23973602,110050.0,110040.0,0.1545677]
[1756461825930,1.23973602,110050.0,110040.0,0.33631979]
[1756461826335,1.24073602,110050.0,110040.0,0.33631979]
[1756461826544,1.24173602,110050.0,110040.0,0.33631979]
[1756461826756,1.24173602,110050.0,110040.0,0.33954979]
[1756461826961,0.20920467,110050.0,110040.0,0.33631979]
[1756461827179,1.24173602,110050.0,110040.0,0.33631979]
[1756461827387,1.24073345,110050.0,110040.0,0.33631979]
[1756461827597,1.24173345,110050.0,110040.0,0.33954979]
[1756461828018,0.02746653,110050.0,110040.0,0.34151979]
[1756461829151,0.02546653,110050.0,110040.0,0.34151979]
[1756461829612,0.02546653,110050.0,110040.0,0.18699979]
[1756461829816,0.02546653,110050.0,110040.0,0.33643979]
[1756461830250,0.02546653,110050.0,110040.0,0.34176979]
[1756461830450,0.02546653,110050.0,110040.0,0.43006611]
[1756461835859,0.02546653,110050.0,110040.0,0.27542611]
[1756461836072,0.02546653,110050.0,110040.0,0.42994611]
[1756461838026,1.21425052,110060.0,110040.0,0.27542611]
[1756461838217,0.18173557,110050.0,110040.0,0.33955979]
[1756461838447,0.18811458,110050.0,110040.0,0.34164979]
[1756461838617,1.06443914,110050.0,110040.0,0.34164979]
[1756461839206,0.03190779,110050.0,110040.0,0.34164979]
[1756461840392,0.03191094,110050.0,110040.0,0.34164979]
[1756461840815,0.03191094,110050.0,110040.0,1.46247746]
[1756461841054,0.02553193,110050.0,110040.0,0.42994611]
[1756461841266,0.02553193,110050.0,110040.0,1.46247746]
[1756461842132,0.02553193,110050.0,110040.0,1.53439746]
[1756461842533,0.02553193,110050.0,110040.0,1.53739746]
[1756461842774,0.02553193,110050.0,110040.0,0.35034611]
[1756461842990,0.02553193,110050.0,110040.0,0.50490611]
[1756461843895,0.02553296,110050.0,110040.0,0.50490611]
[1756461845850,0.02553296,110050.0,110040.0,0.53223111]
[1756461847342,1.21423412,110070.0,110040.0,0.53223111]
[1756461847343,1.21423412,110070.0,110060.0,0.18171906]
[1756461847580,1.24616972,110070.0,110060.0,0.33615906]
[1756461847787,0.0319356,110070.0,110060.0,0.34148906]
[1756461851755,0.0319356,110070.0,110060.0,0.18704906]
[1756461852027,0.0319356,110070.0,110060.0,0.34132906]
[1756461852407,0.0319356,110070.0,110060.0,1.53203673]
[1756461852608,0.02554848,110070.0,110060.0,1.53203673]
[1756461853038,0.02554848,110070.0,110060.0,1.55935673]
[1756461853805,0.02554848,110070.0,110060.0,1.40507673]
[1756461853939,0.20216158,110090.0,110080.0,0.18168604]
[1756461854138,0.23408024,110090.0,110080.0,0.34129604]
[1756461854381,0.03191866,110090.0,110080.0,1.37382739]
[1756461854824,0.02553493,110090.0,110080.0,0.41117604]
[1756461855036,0.02553493,110090.0,110080.0,1.44370739]
[1756461855431,0.02753493,110090.0,110080.0,1.44370739]
[1756461855776,0.02553493,110090.0,110080.0,1.53196371]
[1756461855989,0.02753493,110090.0,110080.0,1.53192371]
[1756461856411,0.02553493,110090.0,110080.0,1.37772371]
[1756461856625,0.02553493,110090.0,110080.0,0.52670836]
[1756461857056,0.02553493,110090.0,110080.0,0.52666836]
[1756461858289,1.21419012,110100.0,110090.0,0.18166954]
[1756461858519,0.03186266,110100.0,110090.0,0.18487954]
[1756461858987,0.03186072,110100.0,110090.0,0.18487954]
[1756461859410,0.21351376,110100.0,110090.0,0.18487954]
[1756461859613,0.03386072,110100.0,110090.0,0.34112954]
[1756461859857,1.06639207,110100.0,110090.0,0.34112954]
[1756461860068,1.06639207,110100.0,110090.0,0.33899954]
[1756461860278,0.20914317,110100.0,110090.0,0.33899954]
[1756461861794,0.20064646,110100.0,110090.0,0.33899954]
[1756461861975,0.2091353,110100.0,110090.0,0.33899954]
[1756461862176,0.18166954,110090.0,110080.0,0.25156604]
[1756461862377,1.23968315,110090.0,110080.0,0.40560604]
[1756461862580,1.23968315,110090.0,110070.0,0.19398266]
[1756461862779,1.03253135,110080.0,110070.0,0.28227898]
[1756461862957,1.05801361,110080.0,110070.0,0.43631898]
[1756461863152,1.23969965,110080.0,110070.0,0.33572754]
[1756461863370,1.23969965,110080.0,110060.0,0.53159501]
[1756461863571,1.24606753,110080.0,110070.0,0.15404]
[1756461864223,1.24606753,110080.0,110060.0,0.53159501]
[1756461864224,0.18170255,110070.0,110060.0,0.53159501]
[1756461864461,1.05801361,110070.0,110060.0,0.68567501]
[1756461864684,0.02548226,110070.0,110060.0,0.73773508]
[1756461864899,0.02548226,110070.0,110060.0,1.80863268]
[1756461865390,0.0254719,110070.0,110060.0,1.80863268]
[1756461865774,0.0254719,110070.0,110060.0,1.54393268]
[1756461865973,0.0254719,110070.0,110060.0,1.54593268]
[1756461866549,0.00848884,110070.0,110060.0,1.57325168]
[1756461866781,1.23512321,110100.0,110090.0,0.18166954]
[1756461866989,1.26696931,110100.0,110090.0,0.33574954]
[1756461868047,1.26796931,110100.0,110090.0,0.33574954]
[1756461868264,1.26896931,110100.0,110090.0,0.33574954]
[1756461868472,1.26896931,110100.0,110090.0,0.34108954]
[1756461868927,1.26897814,110100.0,110090.0,0.34108954]
[1756461869118,0.23644679,110100.0,110090.0,0.34108954]
[1756461869320,0.05479375,110100.0,110090.0,0.33895954]
[1756461869534,0.23644679,110100.0,110090.0,0.34108954]
[1756461869745,1.26897814,110100.0,110090.0,0.33895954]
[1756461869901,1.26897814,110100.0,110090.0,0.34108954]
[1756461870736,1.0873251,110100.0,110090.0,0.33895954]
[1756461870961,1.06638628,110100.0,110090.0,0.34108954]
[1756461871166,1.24803932,110100.0,110090.0,0.33895954]
[1756461872007,1.24803932,110100.0,110090.0,0.33574954]
[1756461872149,1.24803932,110100.0,110090.0,0.33895954]
[1756461872558,1.35727446,110100.0,110080.0,0.18168252]
[1756461872764,0.23644679,110100.0,110090.0,0.15472]
[1756461874025,1.26797814,110100.0,110090.0,0.15472]
[1756461874234,0.18166954,110090.0,110080.0,0.18489252]
[1756461874438,1.24605582,110090.0,110080.0,0.34170252]
[1756461875748,0.18168604,110080.0,110070.0,0.25551662]
[1756461875959,1.24607232,110080.0,110070.0,0.25551662]
[1756461876159,1.24607232,110080.0,110070.0,0.41019662]
[1756461876284,0.21354097,110080.0,110070.0,0.41019662]
[1756461876490,1.24607232,110080.0,110070.0,0.41019662]
[1756461876694,0.21354097,110080.0,110070.0,0.41232662]
[1756461876896,1.24607232,110080.0,110070.0,0.41232662]
[1756461877300,1.24607232,110080.0,110070.0,0.3405658]
[1756461877513,1.24607232,110080.0,110070.0,0.3426958]
[1756461877712,1.24607232,110080.0,110070.0,0.3436958]
[1756461877919,1.24607232,110080.0,110070.0,0.3415658]
[1756461878110,1.24607232,110080.0,110070.0,0.1868858]
[1756461878313,1.24607232,110080.0,110070.0,0.3415658]
[1756461879616,1.24613697,110080.0,110070.0,0.3415658]
[1756461880365,1.24613697,110080.0,110070.0,0.3436958]
[1756461880730,0.03191958,110080.0,110070.0,0.3436958]
[1756461881080,0.03191958,110080.0,110070.0,1.44685797]
[1756461881302,0.03191958,110080.0,110070.0,0.41432662]
[1756461881549,1.24613697,110080.0,110070.0,0.1890158]
[1756461881756,0.03191958,110080.0,110070.0,0.3438158]
[1756461881977,0.21360562,110080.0,110070.0,0.3438158]
[1756461882186,0.03191958,110080.0,110070.0,0.3438158]
[1756461883630,1.1850727,110090.0,110080.0,0.18168604]
[1756461883885,0.18166992,110090.0,110080.0,0.18702604]
[1756461884058,1.21420127,110090.0,110080.0,0.18702604]
[1756461886117,1.21424896,110090.0,110080.0,0.18702604]
[1756461886494,1.03257904,110090.0,110080.0,0.18702604]
[1756461886701,0.18171723,110090.0,110080.0,0.18702604]
[1756461886906,4.769e-05,110090.0,110080.0,0.18702604]
[1756461889288,4.769e-05,110090.0,110080.0,0.22883449]
[1756461889702,4.769e-05,110090.0,110080.0,0.38359449]
[1756461890741,4.769e-05,110090.0,110080.0,0.22883449]
[1756461891128,4.769e-05,110090.0,110080.0,0.34174604]
[1756461895498,0.00857059,110090.0,110080.0,0.34174604]
[1756461895716,0.03200856,110090.0,110080.0,0.34174604]
[1756461897646,0.9420652,110100.0,110080.0,0.34174604]
[1756461897836,0.94254222,110100.0,110080.0,0.34174604]
[1756461898043,0.94254222,110100.0,110090.0,0.18166954]
[1756461898510,0.94254222,110100.0,110090.0,0.18469954]
[1756461899007,0.94354222,110100.0,110090.0,0.18469954]
[1756461899884,0.18413037,110100.0,110090.0,0.18469954]
[1756461900131,1.21666172,110100.0,110090.0,0.18469954]
[1756461900346,1.21566172,110100.0,110090.0,0.00303]
[1756461900594,1.21566172,110100.0,110090.0,0.15747]
[1756461900771,1.21666172,110100.0,110090.0,0.15747]
[1756461900969,1.21666172,110100.0,110090.0,0.33913954]
[1756461900970,1.21566172,110100.0,110090.0,0.33913954]
[1756461901182,0.18413037,110100.0,110090.0,0.33913954]
[1756461901398,1.21666172,110100.0,110090.0,0.33913954]
[1756461903085,1.21666172,110100.0,110090.0,0.18469954]
[1756461903259,0.18166954,110090.0,110080.0,0.00303]
[1756461903470,1.21420089,110090.0,110080.0,0.33600604]
[1756461903683,1.21420089,110090.0,110080.0,0.15432]
[1756461905529,1.21420089,110090.0,110080.0,0.33600604]
[1756461905766,1.21420089,110090.0,110080.0,0.15432]
[1756461906004,1.21420089,110090.0,110080.0,0.33600604]
[1756461906337,1.21420089,110090.0,110080.0,0.33903604]
[1756461906556,0.18168604,110080.0,110070.0,0.25536337]
[1756461906770,0.18168604,110080.0,110070.0,0.41172337]
[1756461907819,0.18168604,110080.0,110070.0,0.41272337]
[1756461908033,1.21421739,110080.0,110070.0,0.33798255]
[1756461908250,0.18168604,110080.0,110070.0,0.34309255]
[1756461908460,0.2334496,110080.0,110070.0,0.34309255]
[1756461909569,0.26540796,110080.0,110070.0,0.34309255]
[1756461910460,0.2334496,110080.0,110070.0,0.34309255]
[1756461910667,0.26540447,110080.0,110070.0,0.34309255]
[1756461911479,0.21364091,110080.0,110070.0,0.34309255]
[1756461916706,0.12024003,110080.0,110070.0,0.34309255]
[1756461917618,0.03195487,110080.0,110070.0,0.41372337]
[1756461918006,0.21364091,110080.0,110070.0,0.34309255]
[1756461921135,0.19871913,110080.0,110070.0,0.34309255]
[1756461921350,0.21362308,110080.0,110070.0,0.34309255]
[1756461924932,0.21362586,110080.0,110070.0,0.34309255]
[1756461927794,0.03193982,110080.0,110070.0,0.34309255]
[1756461927979,0.21362586,110080.0,110070.0,0.34309255]
[1756461928367,0.21363234,110080.0,110070.0,0.34309255]
[1756461929487,0.0319463,110080.0,110070.0,0.34309255]
[1756461929697,0.21363234,110080.0,110070.0,0.34309255]
[1756461932007,0.03196263,110080.0,110070.0,1.44625472]
[1756461932251,0.02557033,110080.0,110070.0,1.53455104]
[1756461932485,0.02557033,110080.0,110070.0,1.56187104]
[1756461934451,0.02557033,110080.0,110070.0,1.49124022]
[1756461937700,0.00955967,110100.0,110090.0,0.18166954]
[1756461937841,0.19763036,110100.0,110090.0,0.34007954]
[1756461938200,0.19763036,110100.0,110090.0,0.34209954]
[1756461938764,1.23016171,110100.0,110090.0,0.34209954]
[1756461938969,1.23016113,110100.0,110090.0,0.34007954]